Cogmind - Beta 16 @@@ ROGUE MODE // 2025.11.10 @ 01:24:13 Player: Lis Result: Smashed by cave-in Performance ------------- Evolutions (0) 0 Regions Visited (2) 400 Robots Destroyed (14) 70 Value Destroyed (339) 339 Prototype IDs (0) 0 Alien Tech Used (0) 0 Bonus (0) 0 TOTAL SCORE: 809 Bonus ------- None Cogmind --------- Core Integrity 0/250 Matter 205/300 Energy 100/100 System Corruption 9% Temperature Cool (0) Movement Treading (160) Location -10/Mines Parts ------- > --- POWER (1) -------- (None) > --- PROPULSION (2) --- Light Treads Light Treads > --- UTILITY (2) ------ Sensor Array > --- WEAPON (2) ------- Heavy Assault Rifle > --- INVENTORY (5) ---- Ion Engine Light Treads Thief Drone Bay Medium Laser Beam Cannon Peak State ------------ > --- POWER ------------ Light Ion Engine > --- PROPULSION ------- Aluminum Leg Aluminum Leg > --- UTILITY ---------- Improved Heat Sink Signal Interpreter > --- WEAPON ----------- Assault Rifle Grenade Launcher > --- INVENTORY -------- EM Pulse Gun Medium Laser Small Laser Beam Cannon [Rating: 9] Favorites ----------- Power Light Ion Engine Engine Light Ion Engine Propulsion Light Treads Treads Light Treads Leg Aluminum Leg Utility Sensor Array Device Sensor Array Storage Small Storage Unit Processor Signal Interpreter Protection Light Armor Plating Weapon Grenade Launcher Energy Gun Medium Laser Energy Cannon Beam Cannon Ballistic Gun Heavy Assault Rifle Launcher Grenade Launcher Build | -11 -10 -10 ------- Run | Yrd Mat Min Slots Evolved . | . . . Power . | . . . Propulsion . | . . . Utility . | . . . Weapon . | . . . Parts Attached 19 | 6 13 . Power 2 | 1 1 . Engine 2 | 1 1 . Core . | . . . Reactor . | . . . Propulsion 5 | 2 3 . Treads 2 | . 2 . Leg 3 | 2 1 . Wheel . | . . . Hover . | . . . Flight . | . . . Utility 7 | 1 6 . Device 4 | . 4 . Storage 1 | 1 . . Processor 1 | . 1 . Hackware . | . . . Protection 1 | . 1 . Artifact . | . . . Weapon 5 | 2 3 . Energy Gun 1 | 1 . . Energy Cannon 1 | . 1 . Ballistic Gun 2 | 1 1 . Ballistic Cannon . | . . . Launcher 1 | . 1 . Special Weapon . | . . . Impact Weapon . | . . . Slashing Weapon . | . . . Piercing Weapon . | . . . Special Melee Weapon . | . . . Unidentified Prototypes . | . . . Parts Lost 7 | . 4 3 Power 2 | . 1 1 Propulsion 1 | . 1 . Utility 3 | . 2 1 Weapon 1 | . . 1 Highest Loss Streak 4 | . 4 3 To Critical Strikes . | . . . Average Backups 4 | 1 3 5 Power . | . . 1 Propulsion . | . . 1 Utility . | . . . Weapon 2 | . 2 2 Tool/Special . | . . . Unused Backups 5 | . 1 4 Power 1 | . . 1 Propulsion 1 | . . 1 Utility 1 | . . 1 Weapon 2 | . 1 1 Tool/Special . | . . . Average Slot Usage (%) 95 | . 94 98 Engine 13 | . 13 13 Treads 16 | . 9 28 Leg 11 | . 17 . Device 12 | . 11 14 Storage 2 | . 3 . Processor 8 | . 5 13 Protection 1 | . 2 . Energy Gun 3 | . 5 . Ballistic Gun 14 | . 14 14 Launcher 9 | . 7 13 Peak Build Rating 9 | 6 9 9 Average Rating 7 | 4 7 8 On Entrance 4 | . 6 8 Avg Prop Armor Cover (%) . | . . . Naked Turns . | . . . Heaviest Build 15 | 12 15 10 Greatest Support 40 | 20 40 40 Greatest Overweight (x) 1 | 1 . . Average Overweight (x) . | . . . Largest Inventory Capacity 8 | 8 8 5 Average Capacity 5 | 6 5 5 Most Carried 5 | 2 5 5 Average Carried 4 | 1 3 4 Final Capacity 8 | 8 5 5 Final Carried 5 | 2 5 5 Class Distribution -------------------- 100% | Mutant Dominant Class ---------------- Mutant | -10/Materials Mutant | -10/Mines Resources | -11 -10 -10 ----------- Run | Yrd Mat Min Matter Collected 533 | 173 292 68 Remotely . | . . . Salvage Created 355 | . 345 10 Parts 19 | . 19 . Haulers Intercepted 1 | . 1 . Recyclers Shooed 1 | . 1 . Parts Field Recycled . | . . . Retrieved Matter . | . . . Parts Self-Destructed . | . . . Prevented . | . . . Parts Restored . | . . . Kills | -11 -10 -10 ------- Run | Yrd Mat Min Combat Hostiles Destroyed 14 | . 10 4 Guns 5 | . 4 1 Cannons 1 | . 1 . AOE 8 | . 5 3 Classes Destroyed 6 | . 5 1 Worker 1 | . 1 . Hauler 1 | . 1 . Watcher 2 | . 2 . Swarmer 3 | . 3 . Grunt 7 | . 7 . Assembled 4 | . . 4 Best Kill Streak 4 | . 3 4 Combat Bots Only 4 | . 3 4 Max Kills in Single Turn 2 | . 2 2 Gunslinging 1 | . 1 . Exploded 2 | . 1 2 Melee . | . . . Uniques/NPCs Destroyed . | . . . Combat | -11 -10 -10 -------- Run | Yrd Mat Min Hostile Shots Fired 87 | . 58 29 Missed 22 | . 12 10 Hits 65 | . 46 19 Melee 3 | . . 3 Projectile 62 | . 46 16 AOE 5 | . . 5 Critical Strikes 1 | . 1 . Damage Taken 1201 | . 602 599 Core 313 | . 87 226 Absorbed by Shields . | . . . Core Remaining (%) 100 | 100 . . Volleys Fired 41 | . 36 5 Largest 2 | . 2 2 Hottest 80 | . 80 53 Shots Fired 78 | . 70 8 Gun 62 | . 58 4 Cannon 2 | . 2 . Launcher 14 | . 10 4 Special . | . . . Kinetic 40 | . 36 4 Thermal 24 | . 24 . Explosive 14 | . 10 4 Electromagnetic . | . . . Robot Hit Streak 7 | . 7 1 Robot Miss Streak 7 | . 7 2 Penetration Max . | . . . Secondary Targets 1 | . 1 . Max Gunslinging Chain 1 | . 1 . Shots Hit Robots 34 | . 32 2 Core Hits 30 | . 18 12 Critical Kills . | . . . Critical Parts Destroyed . | . . . Critical Strikes 1 | . 1 . Burn 1 | . 1 . Melee Attacks . | . . . Impact . | . . . Slashing . | . . . Piercing . | . . . Sneak Attacks . | . . . Combat Hostiles . | . . . Follow-up Attacks . | . . . Damage Inflicted 1128 | . 895 233 Guns 352 | . 340 12 Cannons 17 | . 17 . Explosions 758 | . 537 221 Melee . | . . . Ramming 1 | . 1 . Kinetic 251 | . 239 12 Thermal 118 | . 118 . Explosive 758 | . 537 221 Electromagnetic . | . . . Impact . | . . . Slashing . | . . . Piercing . | . . . Highest Corruption 9 | . 1 9 Average Corruption 1 | . 1 1 Corruption Purged . | . . . Corruption Blocked . | . . . Effects 8 | . 5 3 Message Errors 3 | . 3 . Matter Fused 1 | . . 1 Data Loss (minor) 1 | . . 1 Data Loss (major) 2 | . 2 . Weapon Failures 1 | . . 1 Overload Shots . | . . . Overflow Damage 4 | . 4 . Projectiles . | . . . Explosions 4 | . 4 . Melee . | . . . Knockbacks . | . . . Impact . | . . . Kinetic . | . . . Secondary . | . . . Self-Inflicted Damage 84 | . 68 16 Shots 4 | . 3 1 Rammed . | . . . Targets Rammed 1 | . 1 . Kicked 1 | . 1 . Crushed . | . . . Highest Temperature 210 | . 210 17 Average Temperature 89 | . 92 14 Received Heat Transfer 266 | . 246 20 Siege Activations . | . . . Martial Activations . | . . . Shielding Activations . | . . . Robots Disrupted . | . . . Combat Hostiles . | . . . Robots Corrupted . | . . . Combat Hostiles . | . . . Parts Fried . | . . . Impact Corruptions . | . . . Robots Melted . | . . . Combat Hostiles . | . . . Parts Melted 1 | . 1 . Heat Transferred 407 | . 407 . Parts Sabotaged . | . . . Parts Stolen . | . . . Parts Stripped . | . . . Power Chain Reactions . | . . . Alert | -11 -10 -10 ------- Run | Yrd Mat Min Maximum Alert Level . | . . . Low Security (%) 100 | 100 100 100 Level 1 . | . . . Level 2 . | . . . Level 3 . | . . . Level 4 . | . . . Level 5 . | . . . High Security . | . . . Max Security . | . . . Peak Influence 76 | . 76 15 Initial 15 | . . 15 Average 20 | . 33 1 Influence Increases 358 | . 345 13 Destroy 0b10 Robot/C 200 | . 200 . Destroy 0b10 Robot/NC 20 | . 20 . Destroy Leader 46 | . 46 . Successful Hack 4 | . 4 . Disable Machine 15 | . 15 . Destroy Structure 58 | . 45 13 Lose Combat Pursuer 15 | . 15 . Influence Decreases 358 | . 306 52 Entered New Map 24 | . . 24 Time Decay 300 | . 276 24 Lost Part 34 | . 30 4 Squads Dispatched 1 | . 1 . Investigation . | . . . Extermination . | . . . Reinforcement 1 | . 1 . Assault . | . . . Garrison . | . . . Intercept . | . . . Searches Triggered . | . . . Construction Impeded . | . . . Haulers Reinforced . | . . . Active Scanning Responses . | . . . Cargo Convoy Interrupts . | . . . Stealth | -11 -10 -10 --------- Run | Yrd Mat Min Distress Signals 1 | . 1 . Communications Jammed . | . . . Distress Signals . | . . . Times Spotted 34 | . 17 17 Peak Tracking Total 19 | . 4 19 Tactical Retreats 3 | . 1 2 Traps | -11 -10 -10 ------- Run | Yrd Mat Min Traps Triggered 1 | . 1 . Indirectly . | . . . Trap Hack Attempts . | . . . Triggered . | . . . Disarmed . | . . . Reprogrammed . | . . . Reused . | . . . Traps Extracted . | . . . Installed . | . . . Triggered . | . . . Machines | -11 -10 -10 ---------- Run | Yrd Mat Min Machines Disabled 1 | . 1 . Max in Single Turn 1 | . 1 . Machines Repaired . | . . . Machines Dismantled . | . . . Machines Sabotaged . | . . . Overloaded Fab Kills . | . . . Hacking | -11 -10 -10 --------- Run | Yrd Mat Min Machines Accessed 4 | . 3 1 Terminals 2 | . 2 . Fabricators . | . . . Repair Stations . | . . . Recycling Units 1 | . 1 . Scanalyzers . | . . . Garrison Access . | . . . Total Hacks 5 | . 4 1 Successful 3 | . 2 1 Failed 2 | . 2 . Catastrophic . | . . . Database Lockouts . | . . . Manual . | . . . Terminals 3 | . 3 . Fabricators . | . . . Repair Stations . | . . . Recycling Units 1 | . 1 . Scanalyzers . | . . . Garrison Access . | . . . Terminal Hacks 2 | . 1 1 Open Door 1 | . . 1 Locate Traps 1 | . 1 . Fabricator Hacks . | . . . Repair Station Hacks . | . . . Recycling Unit Hacks 1 | . 1 . Report Inventory 1 | . 1 . Scanalyzer . | . . . Garrison Access Hacks . | . . . Unauthorized Hacks . | . . . Terminals . | . . . Fabricators . | . . . Repair Stations . | . . . Recycling Units . | . . . Scanalyzers . | . . . Garrison Access . | . . . Data Cores Recovered . | . . . Used . | . . . Hacking Detections 1 | . 1 . Full Trace Events . | . . . Feedback Events . | . . . Feedback Blocked . | . . . Robot Schematics Acquired . | . . . Robots Built . | . . . Authchips . | . . . Time . | . . . Total Robot Build Rating . | . . . Part Schematics Acquired . | . . . Parts Built . | . . . Authchips . | . . . Time . | . . . Total Part Build Rating . | . . . Part Studies Acquired . | . . . Parts Repaired . | . . . Time . | . . . Parts Recycled . | . . . Recycled Matter . | . . . Retrieved Matter . | . . . Retrieved Components . | . . . Parts Scanalyzed . | . . . Part Schematics Acquired . | . . . Parts Damaged . | . . . Bothacking | -11 -10 -10 ------------ Run | Yrd Mat Min Used RIF Installer . | . . . Robots Hacked . | . . . Non-combat . | . . . Combat . | . . . Robot Hacks Applied . | . . . Relay Couplers Released . | . . . Fabnet Peak Effective % . | . . . Robots Rewired . | . . . Allies Hacked . | . . . Hacks Repelled . | . . . Allies | -11 -10 -10 -------- Run | Yrd Mat Min Total Allies . | . . . Largest Group . | . . . Highest-Rated Group . | . . . Highest-Rated Ally . | . . . Total Orders . | . . . Ally Attacks . | . . . Total Damage . | . . . Kills . | . . . Allies Corrupted . | . . . Allies Melted . | . . . Intel | -11 -10 -10 ------- Run | Yrd Mat Min Active Infowar (turns) 692 | . 284 408 Sensors 691 | . 283 408 Terrain 1 | . 1 . Robot Analysis Total . | . . . Derelict Logs Recovered 2 | . . 2 Drone Launches . | . . . Drone Recoveries . | . . . Exploration | -11 -10 -10 ------------- Run | Yrd Mat Min Turns Passed 1179 | 67 705 407 Spaces Moved 691 | 60 386 245 Core 24 | 24 . . Treads 386 | . 141 245 Legs 281 | 36 245 . Wheels . | . . . Hover . | . . . Flight . | . . . Fastest Speed 50 | 50 120 160 Average Speed 140 | 94 134 160 Slowest Speed 160 | 120 160 160 Overloaded Moves . | . . . Propulsion Burnouts . | . . . Robots Hopped . | . . . Potential Cave-ins . | . . . Cave-ins Triggered 1 | . . 1 Exploration Rate (%) 44 | 4 68 62 Regions Visited 2 Branch Regions 1 Pre-discovered Areas 1 | . . 1 Known Exits Taken 1 | . 1 . Unknown Exits Taken 1 | 1 . . Scrap Searched 1 | . . 1 Spaces Dug 7 | . 7 . Terrain Destroyed 63 | . 45 18 Melee . | . . . Projectile . | . . . AOE 63 | . 45 18 Terrain Rammed . | . . . Walls Destroyed . | . . . Machines Disabled . | . . . Actions | -11 -10 -10 --------- Run | Yrd Mat Min Total 815 | 67 496 252 Wait 53 | . 53 . Move 689 | 59 385 245 Hop . | . . . Pick Up 8 | 2 5 1 Fast Attach 10 | 6 4 . Attach 1 | . 1 . Detach . | . . . Swap 9 | . 9 . Drop 3 | . 2 1 Fire 41 | . 36 5 Melee . | . . . Ram . | . . . Kick 1 | . 1 . Crush . | . . . Escape Stasis . | . . . Rewire . | . . . Trap . | . . . Miscellaneous . | . . . Route ------- -11/Scrapyard -10/Materials (discovered 3 exits: *Mat x2 / *Min) -10/Mines (discovered 1 exit: *Mat) History --------- Turn | Location | Event 39 | -11/Scrapyard | Discovered new exit (range 16) 68 | -11/Scrapyard | Entered Materials 301 | -10/Materials | Build established: Mutant 402 | -10/Materials | Lost 4 parts (1p1n2u) 457 | -10/Materials | Discovered new exit (range 16) 513 | -10/Materials | Discovered new exit (range 16) 593 | -10/Materials | Identified exit to Mines 654 | -10/Materials | Discovered new exit (range 16) 676 | -10/Materials | Identified exit to Materials 773 | -10/Materials | Entered Mines 780 | -10/Mines | Learned location of Recycling (-8) 897 | -10/Mines | Discovered exit to Materials (range 8) 907 | -10/Mines | Found the Drone Emporium 920 | -10/Mines | Found Prototype Device 943 | -10/Mines | Learned 2 Materials zone layouts 1138 | -10/Mines | Assembled infested the area 1143 | -10/Mines | Assisted by a Guerilla fighting off Assembled 1180 | -10/Mines | Core integrity fell below 50% 1181 | -10/Mines | Crushed by falling debris 1181 | -10/Mines | Smashed by cave-in Last Messages --------------- 01159_ K-01 Serf collects debris. 01163_ as-85301 destroyed. 01163_ as-68932 destroyed. 01167_ K-01 Serf destroyed. 01170_ Grenade Launcher destroyed. 01170_ System corrupted by crushing effect (+4). 01172_ C-45 Heavy ARC bursts open, deploying its payload. 01172_ D-53 Grenadier unfolds itself. 01174_ as-45433 destroyed. 01174_ Signal Interpreter destroyed. 01174_ System corrupted by crushing effect (+4). 01175_ as-29973 destroyed. 01176_ as-43214 destroyed. 01176_ as-05480 destroyed. 01177_ Lgt. Ion Engine destroyed. 01178_ System corrupted: Component data lost. 01181_ The unstable cave ceiling collapses. 01181_ Crushed by falling debris. [Achievement: Unlikely Earthworm] Map ----- +----------------------------------------------------+ | ???????????? #?????????????????????????? | | ??????????## #?????????????????????????? | | #????????? #?????????????????????????? | | ########## ##????????????????????????? | | ## ## ###### ??????????????????? | | #?????????????????? | | #???????????????????????? | | ## #???????????????????????? | | #### """ ##???????????????????????? | | #?## """ ##????????????????????????? | | ?## """ ##?????????????????????????? | | ## #??????????????????????????? | | # #??????????????????????????? | | ## #??????????????????????????? | | ###### #??????????????????????????? | | #?????## ##??????????????????????????? | | #???????## ##??????????????????????????? | | ?????????# ##????????####?????????????? | | ##???????# ##???????# ?????????????? | | ##??????# #???????# #?????????????? | | ##?????# #???????# #?????????????? | | ##????## #??????## ####??????????? | | ##????## #?????## # ##?????????? | | #?????# ##????# % #?????????? | | #?????# =%###### #?????????? | | #?????## ! @ ##????????? | | ##?????# d #????????? | | ####??????# d #????????? | | #?????????# ##????????? | | #????????# a ##?????????? | | #????????# ### #??????????? | | #????????## ???##### #?????????? | | #????????# #???????# #?????????? | | #????????# ! ##??????# #?????????? | | #????????## %] #??????? ##?????????? | | ?????????# % #??????? #??????????? | | ????????# % ! #??????? #??????????? | | ???????# #??????? ??????????? | | ???????# % ##??????? ??????????? | | ??????# ##???????? ?????????? | | ?????# #????????? #?????????? | | ?????# #?????????? ????????????? | | ?????# #???????????????????????? | | ?????# #???????????????????????? | | ?????# ????????????????????????? | | ?????## % ##????????????????????????? | | ??????## # ??????????????????????????? | | ?????????# ??????????????????????????? | | ?????????# ???????????????????????????? | | ??????????# ???????????????????????????? | +----------------------------------------------------+ Best States ------------- Heat Dissipation 39 Energy Generation 10 Energy Capacity 125 Matter Stores 256 Matter Capacity 300 Sight Range 16 Robot Scan Range 14 Terrain Scan Density 10 Armor Coverage 150 Evasion (%) 55 Recoil Reduction 2 Item Schematics ----------------- None Robot Schematics ------------------ None Fabricated ------------ Nothing Repaired ---------- Nothing Studied --------- None Alien Tech Used ----------------- None Achievements -------------- Unlikely Earthworm Challenges ------------ None Game ------ Seed PitchforkMappingMesh Manual? 0 Play Time 00:33:04 Cumulative 9.9 hours Start 2025.11.10 @ 00:45:17 End 2025.11.10 @ 01:24:13 Sessions 1 Manual Loads 0 Difficulty Rogue Special Mode None Game No. 13 Rogue 13 Adventurer 0 Explorer 0 Win Type - Total 0 Types 0/0/0/0/0/0/0/0/0/0 Lore% 2 Gallery% 12 Achievement% 10 Wizard Run 0 Options --------- Layout 1 ASCII 1 Keyboard 1 Movement Numpad Keybinds 0 Fullscreen 1 Font 24/Smallcaps Map View 50x35 Zoom Use 1% Tactical HUD 1 Map Filters NONE Filters NONE Steam 1 RUN: 41066911-5f8f-43e9-a9d4-65757a04a83d